{"text_format":"1","workbook":"xlsx","n_sheets":3,"sheets":["Feuil1","Feuil2","Feuil3"],"not_rendered":{"charts":0,"images":2,"macros":1,"external_links":0,"defined_names":1,"comments":0,"pivot_tables":0},"unopened":[],"bounds":{"document_bytes":16777216,"sheet_cells":100000,"rows_first":2000,"rows_last":500,"rows_between":2000,"halvings":0,"cell_chars":16384,"cell_head_chars":4096},"cells_cut":0,"cells_raw":0,"read":"whole","date_system":"1900"}

{"sheet":"Feuil1","index":0,"n_rows":410,"n_cols":410,"rows_kept":410,"cut":false,"hidden":false,"merged":[]}
[null,null,{"$f":"TRANSPOSE(A3:B410)","v":"Saint-Brieuc"},"Aucaleuc","Bobital","Brusvily","Calorguen","Dinan","L'Aublette Quevert","Lanvallay","Le Hinglé","Léhon","Quévert","Saint-Carné","Saint-Hélen","Saint-Samson sur Rance","Taden","Trélivan","Trévron","Glomel","Kergrist Moëlou","Mellionnec","Plouguernével","Plounévez Quintin","Rostrenen","Trémargat","Hillion","L'Hôpital","Pommeret","Quessoy","Saint-René","Yffiniac","Bourseul","Corseul","Créhen","Landébia","Languenan","Plancoët","Pléven","Plorec sur Arguenon","Pluduno","Saint-Lormel","Bégard","Berhet","Botlézan","Brélidy","Cavan","Coatascorn","Guénézan","Kermoroc'h","Landebaëron","Pluzunet","Prat","Saint-Laurent","Tonquédec","Trézelan","Gausson","Hénon","L'Hermitage Lorge","Langast","Plémy","Ploeuc sur Lie","Plouguenast","Saint-Carreuc","Bulat Pestivien","Calanhel","Callac","Carnoët","Duault","La Chapelle Neuve","Lohuec","Maël Pestivien","Plourac'h","Plusquellec","Saint-Nicodème","Saint-Servais","Boqueho","Bringolo","Châtelaudren","Lanrodec","Plélo","Plerneuf","Plouagat","Plouvara","Saint-Jean Kerdaniel","Plérin","Grâces","Guingamp","Le Merzer","Moustéru","Pabu","Plouisy","Pommerit le Vicomte","Saint-Agathon","Squiffiec","Trégonneau","Coëtlogon","La Chèze","La Ferrière","La Prénessaye","Le Cambout","Plémet","Plumieux","Saint-Etienne du Gué de l'Isle","Minihy Tréguier","Plouguiel","Trédarzec","Tréguier","Gomené","Illifaut","Laurenan","Loscouët sur Meu","Merdrignac","Mérillac","Saint-Launeuc","Saint-Vran","Trémorel","Fréhel","La Bouillie","Plévenon","Plurien","Sables d'Or les Pins","Broons","Eréac","Lanrélas","Plumaugat","Rouillac","Sévignac","Trédias","Trémeur","Ploëzal","Plouec du Trieux","Pontrieux","Quemper Guézennec","Runan","Saint-Clet","Dolo","Jugon les Lacs","Mégrit","Plédéliac","Saint-Rieul","Gommenec'h","Goudelin","Lanleff","Lannebert","Lanvollon","Le Faouet","Pléguien","Pléhédel","Pludual","Saint-Gilles les Bois","Tréguidel","Tréméven","Tressignaux","Trévérec","Beg Léguer","Caouennec Lanvezeac","Lanmérin","Lannion","Le Yaudet","Ploubezre","Ploulec'h","Ploumilliau","Rospez","Saint-Michel-en-Grève","Trédrez-Locquémeau","Plestin-les-Grèves","Plufur","Saint-Efflam","Tréduder","Trémel","Corlay","La Harmoye","Le Bodéo","Le Haut Corlay","Plussulien","Saint-Martin des Prés","Saint-Mayeux","Collinée","Langourla","Le Gouray","Plessala","Saint-Gilles du Mené","Saint-Gouéno","Saint-Jacut du Mené","Le Moustoir","Locarn","Maël Carhaix","Paule","Plévin","Trébrivan","Treffrin","Tréogan","Caulnes","Guenroc","Guitté","La Chapelle Blanche","Plumaudan","Saint-Jouan de l'Isle","Saint-Maden","Yvignac","Langueux","Les Grèves","Pléneuf-Val-André","Saint-Cast-le-Guildo","Bourbriac","Gurunhuel","Pont Melvez","Saint-Adrien","Andel","Coëtmieux","Hénansal","La Cotentin","Lamballe Armor","Landéhen","Meslin","Morieux","Noyal","Planguenoual","Quintenic","Saint-Alban","Saint-Denoual","Kertugal","Lantic","Notre Dame de la Cour","Plourhan","Saint-Quay Portrieux","Tréveneuc","Lanvellec","Le Vieux Marché","Plouaret","Plouzélambre","Trégrom","Caroual","Erquy","Les Hôpitaux","La Méaugon","Ploufragan","Trémuson","Camlez","Coatréven","Hengoat","Kermaria-Sulard","La Roche Derrien","La Roche-Jaudy","Langoat","Mantallot","Pommerit-Jaudy","Pouldouran","Quemperven","Trézény","Troguéry","Allineuc","Grâce Uzel","Le Quillio","Merléac","Saint-Hervé","Saint-Thélo","Uzel","Le Questel","Plouézec","Canihuel","Kérien","Kerpert","Lanrivain","Magoar","Peumerit Quintin","Saint-Connan","Saint-Gilles Pligeaux","Saint-Nicolas du Pélem","Sainte-Tréphine","Langrolay sur Rance","Pleslin Trigavou","Plouër-sur-Rance","Tréméreuc","Kerfot","Paimpol","Bréhand","Moncontour","Penguily","Saint-Glen","Saint-Trimoël","Trébry","Trédaniel","Binic","Caurel","Mûr-de-Bretagne","Saint-Connec","Saint-Gilles Vieux Marché","Saint-Guen","Le Quinquis","Louargat","Pédernec","Saint-Eloi","Tréglamus","Hénanbihen","Matignon","Pléboulle","Ruca","Saint-Pôtan","Île Grande","Pleumeur-Bodou","Trébeurden","Bon Repos sur Blavet","Gouarec","Laniscat","Lescouët Gouarec","Perret","Plélauff","Saint-Gelven","Saint-Igeaux","Keregal","Lanloup","Plouha","La Ville Louais","Pordic","Trégomeur","Tréméloir","Hémonstoir","La Motte","Loudéac","Saint-Barnabé","Saint-Caradec","Saint-Maudan","Trévé","Kerbors","L'Armor","Lanmodez","Pleubian","L'Arcouest","Loguivy de la Mer","Ploubazlanec","Évran","Le Quiou","Les Champs Géraux","Saint-André-des-Eaux","Saint-Judoce","Saint-Juvat","Tréfumel","La Malhoure","Plénée Jugon","Plestan","Tramain","Beaussais-sur-Mer","Plessix Balisson","Ploubalay","Trégon","Trélévern","Trévou-Tréguignec","Étables-sur-Mer","La Vicomté sur Rance","Pleudihen-sur-Rance","La Clarté","Louannec","Perros Guirec","Ploumanac'h","Saint-Quay Perros","Penvénan","Plésidy","Saint-Fiacre","Saint-Péver","Senven Léhart","Trégastel","Kermouster","Lézardrieux","Pleudaniel","Pleumeur Gautier","Saint-Jacut-de-la-Mer","Lancieux","Loguivy Plougras","Plougras","Plounérin","Cohiniac","Lanfains","Le Foeil","Le Leslay","Le Vieux Bourg","Plaine Haute","Quintin","Saint-Bihy","Saint-Brandan","Saint-Donan","Saint-Gildas","Belle Isle en Terre","Loc Envel","Locmaria","Plougonver","Plounévez Moëdec","Plougrescant","Plouasne","Plourivo","Île de Bréhat","Yvias","Plaintel","Saint-Julien","Créac'h Trégueux","Trégueux","Plédran","Coadout","Ploumagoar","La Landec","Languédias","Plélan le Petit","Saint-Maudez","Saint-Meloir","Saint-Michel de Plélan","Trébédan","Vildé Guingalan","Binic-Étables-sur-Mer","Binic-Étables-sur-Mer"]
["Ville","CP",22000,22100,22100,22100,22100,22100,22100,22100,22100,22100,22100,22100,22100,22100,22100,22100,22100,22110,22110,22110,22110,22110,22110,22110,22120,22120,22120,22120,22120,22120,22130,22130,22130,22130,22130,22130,22130,22130,22130,22130,22140,22140,22140,22140,22140,22140,22140,22140,22140,22140,22140,22140,22140,22140,22150,22150,22150,22150,22150,22150,22150,22150,22160,22160,22160,22160,22160,22160,22160,22160,22160,22160,22160,22160,22170,22170,22170,22170,22170,22170,22170,22170,22170,22190,22200,22200,22200,22200,22200,22200,22200,22200,22200,22200,22210,22210,22210,22210,22210,22210,22210,22210,22220,22220,22220,22220,22230,22230,22230,22230,22230,22230,22230,22230,22230,22240,22240,22240,22240,22240,22250,22250,22250,22250,22250,22250,22250,22250,22260,22260,22260,22260,22260,22260,22270,22270,22270,22270,22270,22290,22290,22290,22290,22290,22290,22290,22290,22290,22290,22290,22290,22290,22290,22300,22300,22300,22300,22300,22300,22300,22300,22300,22300,22300,22310,22310,22310,22310,22310,22320,22320,22320,22320,22320,22320,22320,22330,22330,22330,22330,22330,22330,22330,22340,22340,22340,22340,22340,22340,22340,22340,22350,22350,22350,22350,22350,22350,22350,22350,22360,22360,22370,22380,22390,22390,22390,22390,22400,22400,22400,22400,22400,22400,22400,22400,22400,22400,22400,22400,22400,22410,22410,22410,22410,22410,22410,22420,22420,22420,22420,22420,22430,22430,22430,22440,22440,22440,22450,22450,22450,22450,22450,22450,22450,22450,22450,22450,22450,22450,22450,22460,22460,22460,22460,22460,22460,22460,22470,22470,22480,22480,22480,22480,22480,22480,22480,22480,22480,22480,22490,22490,22490,22490,22500,22500,22510,22510,22510,22510,22510,22510,22510,22520,22530,22530,22530,22530,22530,22540,22540,22540,22540,22540,22550,22550,22550,22550,22550,22560,22560,22560,22570,22570,22570,22570,22570,22570,22570,22570,22580,22580,22580,22590,22590,22590,22590,22600,22600,22600,22600,22600,22600,22600,22610,22610,22610,22610,22620,22620,22620,22630,22630,22630,22630,22630,22630,22630,22640,22640,22640,22640,22650,22650,22650,22650,22660,22660,22680,22690,22690,22700,22700,22700,22700,22700,22710,22720,22720,22720,22720,22730,22740,22740,22740,22740,22750,22770,22780,22780,22780,22800,22800,22800,22800,22800,22800,22800,22800,22800,22800,22800,22810,22810,22810,22810,22810,22820,22830,22860,22870,22930,22940,22940,22950,22950,22960,22970,22970,22980,22980,22980,22980,22980,22980,22980,22980,22680,22520]
["Saint-Brieuc",22000]
["Aucaleuc",22100,57]
["Bobital",22100,61]
["Brusvily",22100,64]
["Calorguen",22100,65]
["Dinan",22100,62]
["L'Aublette Quevert",22100,58]
["Lanvallay",22100,68]
["Le Hinglé",22100,64]
["Léhon",22100,68]
["Quévert",22100,59]
["Saint-Carné",22100,62]
["Saint-Hélen",22100,73]
["Saint-Samson sur Rance",22100,65]
["Taden",22100,64]
["Trélivan",22100,59]
["Trévron",22100,65]
["Glomel",22110,63]
["Kergrist Moëlou",22110,55]
["Mellionnec",22110,66]
["Plouguernével",22110,56]
["Plounévez Quintin",22110,48]
["Rostrenen",22110,59]
["Trémargat",22110,53]
["Hillion",22120,13]
["L'Hôpital",22120,14]
["Pommeret",22120,13]
["Quessoy",22120,17]
["Saint-René",22120,12]
["Yffiniac",22120,9]
["Bourseul",22130,52]
["Corseul",22130,54]
["Créhen",22130,50]
["Landébia",22130,38]
["Languenan",22130,59]
["Plancoët",22130,46]
["Pléven",22130,39]
["Plorec sur Arguenon",22130,48]
["Pluduno",22130,44]
["Saint-Lormel",22130,48]
["Bégard",22140,47]
["Berhet",22140,57]
["Botlézan",22140,48]
["Brélidy",22140,49]
["Cavan",22140,53]
["Coatascorn",22140,53]
["Guénézan",22140,45]
["Kermoroc'h",22140,44]
["Landebaëron",22140,45]
["Pluzunet",22140,55]
["Prat",22140,55]
["Saint-Laurent",22140,43]
["Tonquédec",22140,59]
["Trézelan",22140,59]
["Gausson",22150,34]
["Hénon",22150,23]
["L'Hermitage Lorge",22150,24]
["Langast",22150,37]
["Plémy",22150,31]
["Ploeuc sur Lie",22150,25]
["Plouguenast",22150,37]
["Saint-Carreuc",22150,17]
["Bulat Pestivien",22160,53]
["Calanhel",22160,72]
["Callac",22160,59]
["Carnoët",22160,69]
["Duault",22160,65]
["La Chapelle Neuve",22160,57]
["Lohuec",22160,71]
["Maël Pestivien",22160,55]
["Plourac'h",22160,72]
["Plusquellec",22160,65]
["Saint-Nicodème",22160,65]
["Saint-Servais",22160,61]
["Boqueho",22170,23]
["Bringolo",22170,23]
["Châtelaudren",22170,21]
["Lanrodec",22170,22]
["Plélo",22170,18]
["Plerneuf",22170,11]
["Plouagat",22170,21]
["Plouvara",22170,14]
["Saint-Jean Kerdaniel",22170,31]
["Plérin",22190,5]
["Grâces",22200,35]
["Guingamp",22200,31]
["Le Merzer",22200,28]
["Moustéru",22200,39]
["Pabu",22200,34]
["Plouisy",22200,39]
["Pommerit le Vicomte",22200,34]
["Saint-Agathon",22200,28]
["Squiffiec",22200,38]
["Trégonneau",22200,49]
["Coëtlogon",22210,60]
["La Chèze",22210,53]
["La Ferrière",22210,58]
["La Prénessaye",22210,52]
["Le Cambout",22210,69]
["Plémet",22210,56]
["Plumieux",22210,64]
["Saint-Etienne du Gué de l'Isle",22210,57]
["Minihy Tréguier",22220,70]
["Plouguiel",22220,61]
["Trédarzec",22220,57]
["Tréguier",22220,60]
["Gomené",22230,67]
["Illifaut",22230]
["Laurenan",22230]
["Loscouët sur Meu",22230]
["Merdrignac",22230]
["Mérillac",22230]
["Saint-Launeuc",22230]
["Saint-Vran",22230]
["Trémorel",22230]
["Fréhel",22240]
["La Bouillie",22240]
["Plévenon",22240]
["Plurien",22240]
["Sables d'Or les Pins",22240]
["Broons",22250]
["Eréac",22250]
["Lanrélas",22250]
["Plumaugat",22250]
["Rouillac",22250]
["Sévignac",22250]
["Trédias",22250]
["Trémeur",22250]
["Ploëzal",22260]
["Plouec du Trieux",22260]
["Pontrieux",22260]
["Quemper Guézennec",22260]
["Runan",22260]
["Saint-Clet",22260]
["Dolo",22270]
["Jugon les Lacs",22270]
["Mégrit",22270]
["Plédéliac",22270]
["Saint-Rieul",22270]
["Gommenec'h",22290]
["Goudelin",22290]
["Lanleff",22290]
["Lannebert",22290]
["Lanvollon",22290]
["Le Faouet",22290]
["Pléguien",22290]
["Pléhédel",22290]
["Pludual",22290]
["Saint-Gilles les Bois",22290]
["Tréguidel",22290]
["Tréméven",22290]
["Tressignaux",22290]
["Trévérec",22290]
["Beg Léguer",22300]
["Caouennec Lanvezeac",22300]
["Lanmérin",22300]
["Lannion",22300]
["Le Yaudet",22300]
["Ploubezre",22300]
["Ploulec'h",22300]
["Ploumilliau",22300]
["Rospez",22300]
["Saint-Michel-en-Grève",22300]
["Trédrez-Locquémeau",22300]
["Plestin-les-Grèves",22310]
["Plufur",22310]
["Saint-Efflam",22310]
["Tréduder",22310]
["Trémel",22310]
["Corlay",22320]
["La Harmoye",22320]
["Le Bodéo",22320]
["Le Haut Corlay",22320]
["Plussulien",22320]
["Saint-Martin des Prés",22320]
["Saint-Mayeux",22320]
["Collinée",22330]
["Langourla",22330]
["Le Gouray",22330]
["Plessala",22330]
["Saint-Gilles du Mené",22330]
["Saint-Gouéno",22330]
["Saint-Jacut du Mené",22330]
["Le Moustoir",22340]
["Locarn",22340]
["Maël Carhaix",22340]
["Paule",22340]
["Plévin",22340]
["Trébrivan",22340]
["Treffrin",22340]
["Tréogan",22340]
["Caulnes",22350]
["Guenroc",22350]
["Guitté",22350]
["La Chapelle Blanche",22350]
["Plumaudan",22350]
["Saint-Jouan de l'Isle",22350]
["Saint-Maden",22350]
["Yvignac",22350]
["Langueux",22360]
["Les Grèves",22360]
["Pléneuf-Val-André",22370]
["Saint-Cast-le-Guildo",22380]
["Bourbriac",22390]
["Gurunhuel",22390]
["Pont Melvez",22390]
["Saint-Adrien",22390]
["Andel",22400]
["Coëtmieux",22400]
["Hénansal",22400]
["La Cotentin",22400]
["Lamballe Armor",22400]
["Landéhen",22400]
["Meslin",22400]
["Morieux",22400]
["Noyal",22400]
["Planguenoual",22400]
["Quintenic",22400]
["Saint-Alban",22400]
["Saint-Denoual",22400]
["Kertugal",22410]
["Lantic",22410]
["Notre Dame de la Cour",22410]
["Plourhan",22410]
["Saint-Quay Portrieux",22410]
["Tréveneuc",22410]
["Lanvellec",22420]
["Le Vieux Marché",22420]
["Plouaret",22420]
["Plouzélambre",22420]
["Trégrom",22420]
["Caroual",22430]
["Erquy",22430]
["Les Hôpitaux",22430]
["La Méaugon",22440]
["Ploufragan",22440]
["Trémuson",22440]
["Camlez",22450]
["Coatréven",22450]
["Hengoat",22450]
["Kermaria-Sulard",22450]
["La Roche Derrien",22450]
["La Roche-Jaudy",22450]
["Langoat",22450]
["Mantallot",22450]
["Pommerit-Jaudy",22450]
["Pouldouran",22450]
["Quemperven",22450]
["Trézény",22450]
["Troguéry",22450]
["Allineuc",22460]
["Grâce Uzel",22460]
["Le Quillio",22460]
["Merléac",22460]
["Saint-Hervé",22460]
["Saint-Thélo",22460]
["Uzel",22460]
["Le Questel",22470]
["Plouézec",22470]
["Canihuel",22480]
["Kérien",22480]
["Kerpert",22480]
["Lanrivain",22480]
["Magoar",22480]
["Peumerit Quintin",22480]
["Saint-Connan",22480]
["Saint-Gilles Pligeaux",22480]
["Saint-Nicolas du Pélem",22480]
["Sainte-Tréphine",22480]
["Langrolay sur Rance",22490]
["Pleslin Trigavou",22490]
["Plouër-sur-Rance",22490]
["Tréméreuc",22490]
["Kerfot",22500]
["Paimpol",22500]
["Bréhand",22510]
["Moncontour",22510]
["Penguily",22510]
["Saint-Glen",22510]
["Saint-Trimoël",22510]
["Trébry",22510]
["Trédaniel",22510]
["Binic",22520]
["Caurel",22530]
["Mûr-de-Bretagne",22530]
["Saint-Connec",22530]
["Saint-Gilles Vieux Marché",22530]
["Saint-Guen",22530]
["Le Quinquis",22540]
["Louargat",22540]
["Pédernec",22540]
["Saint-Eloi",22540]
["Tréglamus",22540]
["Hénanbihen",22550]
["Matignon",22550]
["Pléboulle",22550]
["Ruca",22550]
["Saint-Pôtan",22550]
["Île Grande",22560]
["Pleumeur-Bodou",22560]
["Trébeurden",22560]
["Bon Repos sur Blavet",22570]
["Gouarec",22570]
["Laniscat",22570]
["Lescouët Gouarec",22570]
["Perret",22570]
["Plélauff",22570]
["Saint-Gelven",22570]
["Saint-Igeaux",22570]
["Keregal",22580]
["Lanloup",22580]
["Plouha",22580]
["La Ville Louais",22590]
["Pordic",22590]
["Trégomeur",22590]
["Tréméloir",22590]
["Hémonstoir",22600]
["La Motte",22600]
["Loudéac",22600]
["Saint-Barnabé",22600]
["Saint-Caradec",22600]
["Saint-Maudan",22600]
["Trévé",22600]
["Kerbors",22610]
["L'Armor",22610]
["Lanmodez",22610]
["Pleubian",22610]
["L'Arcouest",22620]
["Loguivy de la Mer",22620]
["Ploubazlanec",22620]
["Évran",22630]
["Le Quiou",22630]
["Les Champs Géraux",22630]
["Saint-André-des-Eaux",22630]
["Saint-Judoce",22630]
["Saint-Juvat",22630]
["Tréfumel",22630]
["La Malhoure",22640]
["Plénée Jugon",22640]
["Plestan",22640]
["Tramain",22640]
["Beaussais-sur-Mer",22650]
["Plessix Balisson",22650]
["Ploubalay",22650]
["Trégon",22650]
["Trélévern",22660]
["Trévou-Tréguignec",22660]
["Étables-sur-Mer",22680]
["La Vicomté sur Rance",22690]
["Pleudihen-sur-Rance",22690]
["La Clarté",22700]
["Louannec",22700]
["Perros Guirec",22700]
["Ploumanac'h",22700]
["Saint-Quay Perros",22700]
["Penvénan",22710]
["Plésidy",22720]
["Saint-Fiacre",22720]
["Saint-Péver",22720]
["Senven Léhart",22720]
["Trégastel",22730]
["Kermouster",22740]
["Lézardrieux",22740]
["Pleudaniel",22740]
["Pleumeur Gautier",22740]
["Saint-Jacut-de-la-Mer",22750]
["Lancieux",22770]
["Loguivy Plougras",22780]
["Plougras",22780]
["Plounérin",22780]
["Cohiniac",22800]
["Lanfains",22800]
["Le Foeil",22800]
["Le Leslay",22800]
["Le Vieux Bourg",22800]
["Plaine Haute",22800]
["Quintin",22800]
["Saint-Bihy",22800]
["Saint-Brandan",22800]
["Saint-Donan",22800]
["Saint-Gildas",22800]
["Belle Isle en Terre",22810]
["Loc Envel",22810]
["Locmaria",22810]
["Plougonver",22810]
["Plounévez Moëdec",22810]
["Plougrescant",22820]
["Plouasne",22830]
["Plourivo",22860]
["Île de Bréhat",22870]
["Yvias",22930]
["Plaintel",22940]
["Saint-Julien",22940]
["Créac'h Trégueux",22950]
["Trégueux",22950]
["Plédran",22960]
["Coadout",22970]
["Ploumagoar",22970]
["La Landec",22980]
["Languédias",22980]
["Plélan le Petit",22980]
["Saint-Maudez",22980]
["Saint-Meloir",22980]
["Saint-Michel de Plélan",22980]
["Trébédan",22980]
["Vildé Guingalan",22980]
["Binic-Étables-sur-Mer",22680]
["Binic-Étables-sur-Mer",22520]

{"sheet":"Feuil2","index":1,"n_rows":409,"n_cols":4,"rows_kept":409,"cut":false,"hidden":false,"merged":[]}
["Départ","Destination","Nbr de KM","Temps"]
["Saint-Brieuc",{"$f":"Feuil1!A4","v":"Aucaleuc"},"56 km"," 37 minutes"]
["Saint-Brieuc",{"$f":"Feuil1!A5","v":"Bobital"}]
["Saint-Brieuc",{"$f":"Feuil1!A6","v":"Brusvily"}]
["Saint-Brieuc",{"$f":"Feuil1!A7","v":"Calorguen"}]
["Saint-Brieuc",{"$f":"Feuil1!A8","v":"Dinan"}]
["Saint-Brieuc",{"$f":"Feuil1!A9","v":"L'Aublette Quevert"}]
["Saint-Brieuc",{"$f":"Feuil1!A10","v":"Lanvallay"}]
["Saint-Brieuc",{"$f":"Feuil1!A11","v":"Le Hinglé"}]
["Saint-Brieuc",{"$f":"Feuil1!A12","v":"Léhon"}]
["Saint-Brieuc",{"$f":"Feuil1!A13","v":"Quévert"}]
["Saint-Brieuc",{"$f":"Feuil1!A14","v":"Saint-Carné"}]
["Saint-Brieuc",{"$f":"Feuil1!A15","v":"Saint-Hélen"}]
["Saint-Brieuc",{"$f":"Feuil1!A16","v":"Saint-Samson sur Rance"}]
["Saint-Brieuc",{"$f":"Feuil1!A17","v":"Taden"}]
["Saint-Brieuc",{"$f":"Feuil1!A18","v":"Trélivan"}]
["Saint-Brieuc",{"$f":"Feuil1!A19","v":"Trévron"}]
["Saint-Brieuc",{"$f":"Feuil1!A20","v":"Glomel"}]
["Saint-Brieuc",{"$f":"Feuil1!A21","v":"Kergrist Moëlou"}]
["Saint-Brieuc",{"$f":"Feuil1!A22","v":"Mellionnec"}]
["Saint-Brieuc",{"$f":"Feuil1!A23","v":"Plouguernével"}]
["Saint-Brieuc",{"$f":"Feuil1!A24","v":"Plounévez Quintin"}]
["Saint-Brieuc",{"$f":"Feuil1!A25","v":"Rostrenen"}]
["Saint-Brieuc",{"$f":"Feuil1!A26","v":"Trémargat"}]
["Saint-Brieuc",{"$f":"Feuil1!A27","v":"Hillion"}]
["Saint-Brieuc",{"$f":"Feuil1!A28","v":"L'Hôpital"}]
["Saint-Brieuc",{"$f":"Feuil1!A29","v":"Pommeret"}]
["Saint-Brieuc",{"$f":"Feuil1!A30","v":"Quessoy"}]
["Saint-Brieuc",{"$f":"Feuil1!A31","v":"Saint-René"}]
["Saint-Brieuc",{"$f":"Feuil1!A32","v":"Yffiniac"}]
["Saint-Brieuc",{"$f":"Feuil1!A33","v":"Bourseul"}]
["Saint-Brieuc",{"$f":"Feuil1!A34","v":"Corseul"}]
["Saint-Brieuc",{"$f":"Feuil1!A35","v":"Créhen"}]
["Saint-Brieuc",{"$f":"Feuil1!A36","v":"Landébia"}]
["Saint-Brieuc",{"$f":"Feuil1!A37","v":"Languenan"}]
["Saint-Brieuc",{"$f":"Feuil1!A38","v":"Plancoët"}]
["Saint-Brieuc",{"$f":"Feuil1!A39","v":"Pléven"}]
["Saint-Brieuc",{"$f":"Feuil1!A40","v":"Plorec sur Arguenon"}]
["Saint-Brieuc",{"$f":"Feuil1!A41","v":"Pluduno"}]
["Saint-Brieuc",{"$f":"Feuil1!A42","v":"Saint-Lormel"}]
["Saint-Brieuc",{"$f":"Feuil1!A43","v":"Bégard"}]
["Saint-Brieuc",{"$f":"Feuil1!A44","v":"Berhet"}]
["Saint-Brieuc",{"$f":"Feuil1!A45","v":"Botlézan"}]
["Saint-Brieuc",{"$f":"Feuil1!A46","v":"Brélidy"}]
["Saint-Brieuc",{"$f":"Feuil1!A47","v":"Cavan"}]
["Saint-Brieuc",{"$f":"Feuil1!A48","v":"Coatascorn"}]
["Saint-Brieuc",{"$f":"Feuil1!A49","v":"Guénézan"}]
["Saint-Brieuc",{"$f":"Feuil1!A50","v":"Kermoroc'h"}]
["Saint-Brieuc",{"$f":"Feuil1!A51","v":"Landebaëron"}]
["Saint-Brieuc",{"$f":"Feuil1!A52","v":"Pluzunet"}]
["Saint-Brieuc",{"$f":"Feuil1!A53","v":"Prat"}]
["Saint-Brieuc",{"$f":"Feuil1!A54","v":"Saint-Laurent"}]
["Saint-Brieuc",{"$f":"Feuil1!A55","v":"Tonquédec"}]
["Saint-Brieuc",{"$f":"Feuil1!A56","v":"Trézelan"}]
["Saint-Brieuc",{"$f":"Feuil1!A57","v":"Gausson"}]
["Saint-Brieuc",{"$f":"Feuil1!A58","v":"Hénon"}]
["Saint-Brieuc",{"$f":"Feuil1!A59","v":"L'Hermitage Lorge"}]
["Saint-Brieuc",{"$f":"Feuil1!A60","v":"Langast"}]
["Saint-Brieuc",{"$f":"Feuil1!A61","v":"Plémy"}]
["Saint-Brieuc",{"$f":"Feuil1!A62","v":"Ploeuc sur Lie"}]
["Saint-Brieuc",{"$f":"Feuil1!A63","v":"Plouguenast"}]
["Saint-Brieuc",{"$f":"Feuil1!A64","v":"Saint-Carreuc"}]
["Saint-Brieuc",{"$f":"Feuil1!A65","v":"Bulat Pestivien"}]
["Saint-Brieuc",{"$f":"Feuil1!A66","v":"Calanhel"}]
["Saint-Brieuc",{"$f":"Feuil1!A67","v":"Callac"}]
["Saint-Brieuc",{"$f":"Feuil1!A68","v":"Carnoët"}]
["Saint-Brieuc",{"$f":"Feuil1!A69","v":"Duault"}]
["Saint-Brieuc",{"$f":"Feuil1!A70","v":"La Chapelle Neuve"}]
["Saint-Brieuc",{"$f":"Feuil1!A71","v":"Lohuec"}]
["Saint-Brieuc",{"$f":"Feuil1!A72","v":"Maël Pestivien"}]
["Saint-Brieuc",{"$f":"Feuil1!A73","v":"Plourac'h"}]
["Saint-Brieuc",{"$f":"Feuil1!A74","v":"Plusquellec"}]
["Saint-Brieuc",{"$f":"Feuil1!A75","v":"Saint-Nicodème"}]
["Saint-Brieuc",{"$f":"Feuil1!A76","v":"Saint-Servais"}]
["Saint-Brieuc",{"$f":"Feuil1!A77","v":"Boqueho"}]
["Saint-Brieuc",{"$f":"Feuil1!A78","v":"Bringolo"}]
["Saint-Brieuc",{"$f":"Feuil1!A79","v":"Châtelaudren"}]
["Saint-Brieuc",{"$f":"Feuil1!A80","v":"Lanrodec"}]
["Saint-Brieuc",{"$f":"Feuil1!A81","v":"Plélo"}]
["Saint-Brieuc",{"$f":"Feuil1!A82","v":"Plerneuf"}]
["Saint-Brieuc",{"$f":"Feuil1!A83","v":"Plouagat"}]
["Saint-Brieuc",{"$f":"Feuil1!A84","v":"Plouvara"}]
["Saint-Brieuc",{"$f":"Feuil1!A85","v":"Saint-Jean Kerdaniel"}]
["Saint-Brieuc",{"$f":"Feuil1!A86","v":"Plérin"}]
["Saint-Brieuc",{"$f":"Feuil1!A87","v":"Grâces"}]
["Saint-Brieuc",{"$f":"Feuil1!A88","v":"Guingamp"}]
["Saint-Brieuc",{"$f":"Feuil1!A89","v":"Le Merzer"}]
["Saint-Brieuc",{"$f":"Feuil1!A90","v":"Moustéru"}]
["Saint-Brieuc",{"$f":"Feuil1!A91","v":"Pabu"}]
["Saint-Brieuc",{"$f":"Feuil1!A92","v":"Plouisy"}]
["Saint-Brieuc",{"$f":"Feuil1!A93","v":"Pommerit le Vicomte"}]
["Saint-Brieuc",{"$f":"Feuil1!A94","v":"Saint-Agathon"}]
["Saint-Brieuc",{"$f":"Feuil1!A95","v":"Squiffiec"}]
["Saint-Brieuc",{"$f":"Feuil1!A96","v":"Trégonneau"}]
["Saint-Brieuc",{"$f":"Feuil1!A97","v":"Coëtlogon"}]
["Saint-Brieuc",{"$f":"Feuil1!A98","v":"La Chèze"}]
["Saint-Brieuc",{"$f":"Feuil1!A99","v":"La Ferrière"}]
["Saint-Brieuc",{"$f":"Feuil1!A100","v":"La Prénessaye"}]
["Saint-Brieuc",{"$f":"Feuil1!A101","v":"Le Cambout"}]
["Saint-Brieuc",{"$f":"Feuil1!A102","v":"Plémet"}]
["Saint-Brieuc",{"$f":"Feuil1!A103","v":"Plumieux"}]
["Saint-Brieuc",{"$f":"Feuil1!A104","v":"Saint-Etienne du Gué de l'Isle"}]
["Saint-Brieuc",{"$f":"Feuil1!A105","v":"Minihy Tréguier"}]
["Saint-Brieuc",{"$f":"Feuil1!A106","v":"Plouguiel"}]
["Saint-Brieuc",{"$f":"Feuil1!A107","v":"Trédarzec"}]
["Saint-Brieuc",{"$f":"Feuil1!A108","v":"Tréguier"}]
["Saint-Brieuc",{"$f":"Feuil1!A109","v":"Gomené"}]
["Saint-Brieuc",{"$f":"Feuil1!A110","v":"Illifaut"}]
["Saint-Brieuc",{"$f":"Feuil1!A111","v":"Laurenan"}]
["Saint-Brieuc",{"$f":"Feuil1!A112","v":"Loscouët sur Meu"}]
["Saint-Brieuc",{"$f":"Feuil1!A113","v":"Merdrignac"}]
["Saint-Brieuc",{"$f":"Feuil1!A114","v":"Mérillac"}]
["Saint-Brieuc",{"$f":"Feuil1!A115","v":"Saint-Launeuc"}]
["Saint-Brieuc",{"$f":"Feuil1!A116","v":"Saint-Vran"}]
["Saint-Brieuc",{"$f":"Feuil1!A117","v":"Trémorel"}]
["Saint-Brieuc",{"$f":"Feuil1!A118","v":"Fréhel"}]
["Saint-Brieuc",{"$f":"Feuil1!A119","v":"La Bouillie"}]
["Saint-Brieuc",{"$f":"Feuil1!A120","v":"Plévenon"}]
["Saint-Brieuc",{"$f":"Feuil1!A121","v":"Plurien"}]
["Saint-Brieuc",{"$f":"Feuil1!A122","v":"Sables d'Or les Pins"}]
["Saint-Brieuc",{"$f":"Feuil1!A123","v":"Broons"}]
["Saint-Brieuc",{"$f":"Feuil1!A124","v":"Eréac"}]
["Saint-Brieuc",{"$f":"Feuil1!A125","v":"Lanrélas"}]
["Saint-Brieuc",{"$f":"Feuil1!A126","v":"Plumaugat"}]
["Saint-Brieuc",{"$f":"Feuil1!A127","v":"Rouillac"}]
["Saint-Brieuc",{"$f":"Feuil1!A128","v":"Sévignac"}]
["Saint-Brieuc",{"$f":"Feuil1!A129","v":"Trédias"}]
["Saint-Brieuc",{"$f":"Feuil1!A130","v":"Trémeur"}]
["Saint-Brieuc",{"$f":"Feuil1!A131","v":"Ploëzal"}]
["Saint-Brieuc",{"$f":"Feuil1!A132","v":"Plouec du Trieux"}]
["Saint-Brieuc",{"$f":"Feuil1!A133","v":"Pontrieux"}]
["Saint-Brieuc",{"$f":"Feuil1!A134","v":"Quemper Guézennec"}]
["Saint-Brieuc",{"$f":"Feuil1!A135","v":"Runan"}]
["Saint-Brieuc",{"$f":"Feuil1!A136","v":"Saint-Clet"}]
["Saint-Brieuc",{"$f":"Feuil1!A137","v":"Dolo"}]
["Saint-Brieuc",{"$f":"Feuil1!A138","v":"Jugon les Lacs"}]
["Saint-Brieuc",{"$f":"Feuil1!A139","v":"Mégrit"}]
["Saint-Brieuc",{"$f":"Feuil1!A140","v":"Plédéliac"}]
["Saint-Brieuc",{"$f":"Feuil1!A141","v":"Saint-Rieul"}]
["Saint-Brieuc",{"$f":"Feuil1!A142","v":"Gommenec'h"}]
["Saint-Brieuc",{"$f":"Feuil1!A143","v":"Goudelin"}]
["Saint-Brieuc",{"$f":"Feuil1!A144","v":"Lanleff"}]
["Saint-Brieuc",{"$f":"Feuil1!A145","v":"Lannebert"}]
["Saint-Brieuc",{"$f":"Feuil1!A146","v":"Lanvollon"}]
["Saint-Brieuc",{"$f":"Feuil1!A147","v":"Le Faouet"}]
["Saint-Brieuc",{"$f":"Feuil1!A148","v":"Pléguien"}]
["Saint-Brieuc",{"$f":"Feuil1!A149","v":"Pléhédel"}]
["Saint-Brieuc",{"$f":"Feuil1!A150","v":"Pludual"}]
["Saint-Brieuc",{"$f":"Feuil1!A151","v":"Saint-Gilles les Bois"}]
["Saint-Brieuc",{"$f":"Feuil1!A152","v":"Tréguidel"}]
["Saint-Brieuc",{"$f":"Feuil1!A153","v":"Tréméven"}]
["Saint-Brieuc",{"$f":"Feuil1!A154","v":"Tressignaux"}]
["Saint-Brieuc",{"$f":"Feuil1!A155","v":"Trévérec"}]
["Saint-Brieuc",{"$f":"Feuil1!A156","v":"Beg Léguer"}]
["Saint-Brieuc",{"$f":"Feuil1!A157","v":"Caouennec Lanvezeac"}]
["Saint-Brieuc",{"$f":"Feuil1!A158","v":"Lanmérin"}]
["Saint-Brieuc",{"$f":"Feuil1!A159","v":"Lannion"}]
["Saint-Brieuc",{"$f":"Feuil1!A160","v":"Le Yaudet"}]
["Saint-Brieuc",{"$f":"Feuil1!A161","v":"Ploubezre"}]
["Saint-Brieuc",{"$f":"Feuil1!A162","v":"Ploulec'h"}]
["Saint-Brieuc",{"$f":"Feuil1!A163","v":"Ploumilliau"}]
["Saint-Brieuc",{"$f":"Feuil1!A164","v":"Rospez"}]
["Saint-Brieuc",{"$f":"Feuil1!A165","v":"Saint-Michel-en-Grève"}]
["Saint-Brieuc",{"$f":"Feuil1!A166","v":"Trédrez-Locquémeau"}]
["Saint-Brieuc",{"$f":"Feuil1!A167","v":"Plestin-les-Grèves"}]
["Saint-Brieuc",{"$f":"Feuil1!A168","v":"Plufur"}]
["Saint-Brieuc",{"$f":"Feuil1!A169","v":"Saint-Efflam"}]
["Saint-Brieuc",{"$f":"Feuil1!A170","v":"Tréduder"}]
["Saint-Brieuc",{"$f":"Feuil1!A171","v":"Trémel"}]
["Saint-Brieuc",{"$f":"Feuil1!A172","v":"Corlay"}]
["Saint-Brieuc",{"$f":"Feuil1!A173","v":"La Harmoye"}]
["Saint-Brieuc",{"$f":"Feuil1!A174","v":"Le Bodéo"}]
["Saint-Brieuc",{"$f":"Feuil1!A175","v":"Le Haut Corlay"}]
["Saint-Brieuc",{"$f":"Feuil1!A176","v":"Plussulien"}]
["Saint-Brieuc",{"$f":"Feuil1!A177","v":"Saint-Martin des Prés"}]
["Saint-Brieuc",{"$f":"Feuil1!A178","v":"Saint-Mayeux"}]
["Saint-Brieuc",{"$f":"Feuil1!A179","v":"Collinée"}]
["Saint-Brieuc",{"$f":"Feuil1!A180","v":"Langourla"}]
["Saint-Brieuc",{"$f":"Feuil1!A181","v":"Le Gouray"}]
["Saint-Brieuc",{"$f":"Feuil1!A182","v":"Plessala"}]
["Saint-Brieuc",{"$f":"Feuil1!A183","v":"Saint-Gilles du Mené"}]
["Saint-Brieuc",{"$f":"Feuil1!A184","v":"Saint-Gouéno"}]
["Saint-Brieuc",{"$f":"Feuil1!A185","v":"Saint-Jacut du Mené"}]
["Saint-Brieuc",{"$f":"Feuil1!A186","v":"Le Moustoir"}]
["Saint-Brieuc",{"$f":"Feuil1!A187","v":"Locarn"}]
["Saint-Brieuc",{"$f":"Feuil1!A188","v":"Maël Carhaix"}]
["Saint-Brieuc",{"$f":"Feuil1!A189","v":"Paule"}]
["Saint-Brieuc",{"$f":"Feuil1!A190","v":"Plévin"}]
["Saint-Brieuc",{"$f":"Feuil1!A191","v":"Trébrivan"}]
["Saint-Brieuc",{"$f":"Feuil1!A192","v":"Treffrin"}]
["Saint-Brieuc",{"$f":"Feuil1!A193","v":"Tréogan"}]
["Saint-Brieuc",{"$f":"Feuil1!A194","v":"Caulnes"}]
["Saint-Brieuc",{"$f":"Feuil1!A195","v":"Guenroc"}]
["Saint-Brieuc",{"$f":"Feuil1!A196","v":"Guitté"}]
["Saint-Brieuc",{"$f":"Feuil1!A197","v":"La Chapelle Blanche"}]
["Saint-Brieuc",{"$f":"Feuil1!A198","v":"Plumaudan"}]
["Saint-Brieuc",{"$f":"Feuil1!A199","v":"Saint-Jouan de l'Isle"}]
["Saint-Brieuc",{"$f":"Feuil1!A200","v":"Saint-Maden"}]
["Saint-Brieuc",{"$f":"Feuil1!A201","v":"Yvignac"}]
["Saint-Brieuc",{"$f":"Feuil1!A202","v":"Langueux"}]
["Saint-Brieuc",{"$f":"Feuil1!A203","v":"Les Grèves"}]
["Saint-Brieuc",{"$f":"Feuil1!A204","v":"Pléneuf-Val-André"}]
["Saint-Brieuc",{"$f":"Feuil1!A205","v":"Saint-Cast-le-Guildo"}]
["Saint-Brieuc",{"$f":"Feuil1!A206","v":"Bourbriac"}]
["Saint-Brieuc",{"$f":"Feuil1!A207","v":"Gurunhuel"}]
["Saint-Brieuc",{"$f":"Feuil1!A208","v":"Pont Melvez"}]
["Saint-Brieuc",{"$f":"Feuil1!A209","v":"Saint-Adrien"}]
["Saint-Brieuc",{"$f":"Feuil1!A210","v":"Andel"}]
["Saint-Brieuc",{"$f":"Feuil1!A211","v":"Coëtmieux"}]
["Saint-Brieuc",{"$f":"Feuil1!A212","v":"Hénansal"}]
["Saint-Brieuc",{"$f":"Feuil1!A213","v":"La Cotentin"}]
["Saint-Brieuc",{"$f":"Feuil1!A214","v":"Lamballe Armor"}]
["Saint-Brieuc",{"$f":"Feuil1!A215","v":"Landéhen"}]
["Saint-Brieuc",{"$f":"Feuil1!A216","v":"Meslin"}]
["Saint-Brieuc",{"$f":"Feuil1!A217","v":"Morieux"}]
["Saint-Brieuc",{"$f":"Feuil1!A218","v":"Noyal"}]
["Saint-Brieuc",{"$f":"Feuil1!A219","v":"Planguenoual"}]
["Saint-Brieuc",{"$f":"Feuil1!A220","v":"Quintenic"}]
["Saint-Brieuc",{"$f":"Feuil1!A221","v":"Saint-Alban"}]
["Saint-Brieuc",{"$f":"Feuil1!A222","v":"Saint-Denoual"}]
["Saint-Brieuc",{"$f":"Feuil1!A223","v":"Kertugal"}]
["Saint-Brieuc",{"$f":"Feuil1!A224","v":"Lantic"}]
["Saint-Brieuc",{"$f":"Feuil1!A225","v":"Notre Dame de la Cour"}]
["Saint-Brieuc",{"$f":"Feuil1!A226","v":"Plourhan"}]
["Saint-Brieuc",{"$f":"Feuil1!A227","v":"Saint-Quay Portrieux"}]
["Saint-Brieuc",{"$f":"Feuil1!A228","v":"Tréveneuc"}]
["Saint-Brieuc",{"$f":"Feuil1!A229","v":"Lanvellec"}]
["Saint-Brieuc",{"$f":"Feuil1!A230","v":"Le Vieux Marché"}]
["Saint-Brieuc",{"$f":"Feuil1!A231","v":"Plouaret"}]
["Saint-Brieuc",{"$f":"Feuil1!A232","v":"Plouzélambre"}]
["Saint-Brieuc",{"$f":"Feuil1!A233","v":"Trégrom"}]
["Saint-Brieuc",{"$f":"Feuil1!A234","v":"Caroual"}]
["Saint-Brieuc",{"$f":"Feuil1!A235","v":"Erquy"}]
["Saint-Brieuc",{"$f":"Feuil1!A236","v":"Les Hôpitaux"}]
["Saint-Brieuc",{"$f":"Feuil1!A237","v":"La Méaugon"}]
["Saint-Brieuc",{"$f":"Feuil1!A238","v":"Ploufragan"}]
["Saint-Brieuc",{"$f":"Feuil1!A239","v":"Trémuson"}]
["Saint-Brieuc",{"$f":"Feuil1!A240","v":"Camlez"}]
["Saint-Brieuc",{"$f":"Feuil1!A241","v":"Coatréven"}]
["Saint-Brieuc",{"$f":"Feuil1!A242","v":"Hengoat"}]
["Saint-Brieuc",{"$f":"Feuil1!A243","v":"Kermaria-Sulard"}]
["Saint-Brieuc",{"$f":"Feuil1!A244","v":"La Roche Derrien"}]
["Saint-Brieuc",{"$f":"Feuil1!A245","v":"La Roche-Jaudy"}]
["Saint-Brieuc",{"$f":"Feuil1!A246","v":"Langoat"}]
["Saint-Brieuc",{"$f":"Feuil1!A247","v":"Mantallot"}]
["Saint-Brieuc",{"$f":"Feuil1!A248","v":"Pommerit-Jaudy"}]
["Saint-Brieuc",{"$f":"Feuil1!A249","v":"Pouldouran"}]
["Saint-Brieuc",{"$f":"Feuil1!A250","v":"Quemperven"}]
["Saint-Brieuc",{"$f":"Feuil1!A251","v":"Trézény"}]
["Saint-Brieuc",{"$f":"Feuil1!A252","v":"Troguéry"}]
["Saint-Brieuc",{"$f":"Feuil1!A253","v":"Allineuc"}]
["Saint-Brieuc",{"$f":"Feuil1!A254","v":"Grâce Uzel"}]
["Saint-Brieuc",{"$f":"Feuil1!A255","v":"Le Quillio"}]
["Saint-Brieuc",{"$f":"Feuil1!A256","v":"Merléac"}]
["Saint-Brieuc",{"$f":"Feuil1!A257","v":"Saint-Hervé"}]
["Saint-Brieuc",{"$f":"Feuil1!A258","v":"Saint-Thélo"}]
["Saint-Brieuc",{"$f":"Feuil1!A259","v":"Uzel"}]
["Saint-Brieuc",{"$f":"Feuil1!A260","v":"Le Questel"}]
["Saint-Brieuc",{"$f":"Feuil1!A261","v":"Plouézec"}]
["Saint-Brieuc",{"$f":"Feuil1!A262","v":"Canihuel"}]
["Saint-Brieuc",{"$f":"Feuil1!A263","v":"Kérien"}]
["Saint-Brieuc",{"$f":"Feuil1!A264","v":"Kerpert"}]
["Saint-Brieuc",{"$f":"Feuil1!A265","v":"Lanrivain"}]
["Saint-Brieuc",{"$f":"Feuil1!A266","v":"Magoar"}]
["Saint-Brieuc",{"$f":"Feuil1!A267","v":"Peumerit Quintin"}]
["Saint-Brieuc",{"$f":"Feuil1!A268","v":"Saint-Connan"}]
["Saint-Brieuc",{"$f":"Feuil1!A269","v":"Saint-Gilles Pligeaux"}]
["Saint-Brieuc",{"$f":"Feuil1!A270","v":"Saint-Nicolas du Pélem"}]
["Saint-Brieuc",{"$f":"Feuil1!A271","v":"Sainte-Tréphine"}]
["Saint-Brieuc",{"$f":"Feuil1!A272","v":"Langrolay sur Rance"}]
["Saint-Brieuc",{"$f":"Feuil1!A273","v":"Pleslin Trigavou"}]
["Saint-Brieuc",{"$f":"Feuil1!A274","v":"Plouër-sur-Rance"}]
["Saint-Brieuc",{"$f":"Feuil1!A275","v":"Tréméreuc"}]
["Saint-Brieuc",{"$f":"Feuil1!A276","v":"Kerfot"}]
["Saint-Brieuc",{"$f":"Feuil1!A277","v":"Paimpol"}]
["Saint-Brieuc",{"$f":"Feuil1!A278","v":"Bréhand"}]
["Saint-Brieuc",{"$f":"Feuil1!A279","v":"Moncontour"}]
["Saint-Brieuc",{"$f":"Feuil1!A280","v":"Penguily"}]
["Saint-Brieuc",{"$f":"Feuil1!A281","v":"Saint-Glen"}]
["Saint-Brieuc",{"$f":"Feuil1!A282","v":"Saint-Trimoël"}]
["Saint-Brieuc",{"$f":"Feuil1!A283","v":"Trébry"}]
["Saint-Brieuc",{"$f":"Feuil1!A284","v":"Trédaniel"}]
["Saint-Brieuc",{"$f":"Feuil1!A285","v":"Binic"}]
["Saint-Brieuc",{"$f":"Feuil1!A286","v":"Caurel"}]
["Saint-Brieuc",{"$f":"Feuil1!A287","v":"Mûr-de-Bretagne"}]
["Saint-Brieuc",{"$f":"Feuil1!A288","v":"Saint-Connec"}]
["Saint-Brieuc",{"$f":"Feuil1!A289","v":"Saint-Gilles Vieux Marché"}]
["Saint-Brieuc",{"$f":"Feuil1!A290","v":"Saint-Guen"}]
["Saint-Brieuc",{"$f":"Feuil1!A291","v":"Le Quinquis"}]
["Saint-Brieuc",{"$f":"Feuil1!A292","v":"Louargat"}]
["Saint-Brieuc",{"$f":"Feuil1!A293","v":"Pédernec"}]
["Saint-Brieuc",{"$f":"Feuil1!A294","v":"Saint-Eloi"}]
["Saint-Brieuc",{"$f":"Feuil1!A295","v":"Tréglamus"}]
["Saint-Brieuc",{"$f":"Feuil1!A296","v":"Hénanbihen"}]
["Saint-Brieuc",{"$f":"Feuil1!A297","v":"Matignon"}]
["Saint-Brieuc",{"$f":"Feuil1!A298","v":"Pléboulle"}]
["Saint-Brieuc",{"$f":"Feuil1!A299","v":"Ruca"}]
["Saint-Brieuc",{"$f":"Feuil1!A300","v":"Saint-Pôtan"}]
["Saint-Brieuc",{"$f":"Feuil1!A301","v":"Île Grande"}]
["Saint-Brieuc",{"$f":"Feuil1!A302","v":"Pleumeur-Bodou"}]
["Saint-Brieuc",{"$f":"Feuil1!A303","v":"Trébeurden"}]
["Saint-Brieuc",{"$f":"Feuil1!A304","v":"Bon Repos sur Blavet"}]
["Saint-Brieuc",{"$f":"Feuil1!A305","v":"Gouarec"}]
["Saint-Brieuc",{"$f":"Feuil1!A306","v":"Laniscat"}]
["Saint-Brieuc",{"$f":"Feuil1!A307","v":"Lescouët Gouarec"}]
["Saint-Brieuc",{"$f":"Feuil1!A308","v":"Perret"}]
["Saint-Brieuc",{"$f":"Feuil1!A309","v":"Plélauff"}]
["Saint-Brieuc",{"$f":"Feuil1!A310","v":"Saint-Gelven"}]
["Saint-Brieuc",{"$f":"Feuil1!A311","v":"Saint-Igeaux"}]
["Saint-Brieuc",{"$f":"Feuil1!A312","v":"Keregal"}]
["Saint-Brieuc",{"$f":"Feuil1!A313","v":"Lanloup"}]
["Saint-Brieuc",{"$f":"Feuil1!A314","v":"Plouha"}]
["Saint-Brieuc",{"$f":"Feuil1!A315","v":"La Ville Louais"}]
["Saint-Brieuc",{"$f":"Feuil1!A316","v":"Pordic"}]
["Saint-Brieuc",{"$f":"Feuil1!A317","v":"Trégomeur"}]
["Saint-Brieuc",{"$f":"Feuil1!A318","v":"Tréméloir"}]
["Saint-Brieuc",{"$f":"Feuil1!A319","v":"Hémonstoir"}]
["Saint-Brieuc",{"$f":"Feuil1!A320","v":"La Motte"}]
["Saint-Brieuc",{"$f":"Feuil1!A321","v":"Loudéac"}]
["Saint-Brieuc",{"$f":"Feuil1!A322","v":"Saint-Barnabé"}]
["Saint-Brieuc",{"$f":"Feuil1!A323","v":"Saint-Caradec"}]
["Saint-Brieuc",{"$f":"Feuil1!A324","v":"Saint-Maudan"}]
["Saint-Brieuc",{"$f":"Feuil1!A325","v":"Trévé"}]
["Saint-Brieuc",{"$f":"Feuil1!A326","v":"Kerbors"}]
["Saint-Brieuc",{"$f":"Feuil1!A327","v":"L'Armor"}]
["Saint-Brieuc",{"$f":"Feuil1!A328","v":"Lanmodez"}]
["Saint-Brieuc",{"$f":"Feuil1!A329","v":"Pleubian"}]
["Saint-Brieuc",{"$f":"Feuil1!A330","v":"L'Arcouest"}]
["Saint-Brieuc",{"$f":"Feuil1!A331","v":"Loguivy de la Mer"}]
["Saint-Brieuc",{"$f":"Feuil1!A332","v":"Ploubazlanec"}]
["Saint-Brieuc",{"$f":"Feuil1!A333","v":"Évran"}]
["Saint-Brieuc",{"$f":"Feuil1!A334","v":"Le Quiou"}]
["Saint-Brieuc",{"$f":"Feuil1!A335","v":"Les Champs Géraux"}]
["Saint-Brieuc",{"$f":"Feuil1!A336","v":"Saint-André-des-Eaux"}]
["Saint-Brieuc",{"$f":"Feuil1!A337","v":"Saint-Judoce"}]
["Saint-Brieuc",{"$f":"Feuil1!A338","v":"Saint-Juvat"}]
["Saint-Brieuc",{"$f":"Feuil1!A339","v":"Tréfumel"}]
["Saint-Brieuc",{"$f":"Feuil1!A340","v":"La Malhoure"}]
["Saint-Brieuc",{"$f":"Feuil1!A341","v":"Plénée Jugon"}]
["Saint-Brieuc",{"$f":"Feuil1!A342","v":"Plestan"}]
["Saint-Brieuc",{"$f":"Feuil1!A343","v":"Tramain"}]
["Saint-Brieuc",{"$f":"Feuil1!A344","v":"Beaussais-sur-Mer"}]
["Saint-Brieuc",{"$f":"Feuil1!A345","v":"Plessix Balisson"}]
["Saint-Brieuc",{"$f":"Feuil1!A346","v":"Ploubalay"}]
["Saint-Brieuc",{"$f":"Feuil1!A347","v":"Trégon"}]
["Saint-Brieuc",{"$f":"Feuil1!A348","v":"Trélévern"}]
["Saint-Brieuc",{"$f":"Feuil1!A349","v":"Trévou-Tréguignec"}]
["Saint-Brieuc",{"$f":"Feuil1!A350","v":"Étables-sur-Mer"}]
["Saint-Brieuc",{"$f":"Feuil1!A351","v":"La Vicomté sur Rance"}]
["Saint-Brieuc",{"$f":"Feuil1!A352","v":"Pleudihen-sur-Rance"}]
["Saint-Brieuc",{"$f":"Feuil1!A353","v":"La Clarté"}]
["Saint-Brieuc",{"$f":"Feuil1!A354","v":"Louannec"}]
["Saint-Brieuc",{"$f":"Feuil1!A355","v":"Perros Guirec"}]
["Saint-Brieuc",{"$f":"Feuil1!A356","v":"Ploumanac'h"}]
["Saint-Brieuc",{"$f":"Feuil1!A357","v":"Saint-Quay Perros"}]
["Saint-Brieuc",{"$f":"Feuil1!A358","v":"Penvénan"}]
["Saint-Brieuc",{"$f":"Feuil1!A359","v":"Plésidy"}]
["Saint-Brieuc",{"$f":"Feuil1!A360","v":"Saint-Fiacre"}]
["Saint-Brieuc",{"$f":"Feuil1!A361","v":"Saint-Péver"}]
["Saint-Brieuc",{"$f":"Feuil1!A362","v":"Senven Léhart"}]
["Saint-Brieuc",{"$f":"Feuil1!A363","v":"Trégastel"}]
["Saint-Brieuc",{"$f":"Feuil1!A364","v":"Kermouster"}]
["Saint-Brieuc",{"$f":"Feuil1!A365","v":"Lézardrieux"}]
["Saint-Brieuc",{"$f":"Feuil1!A366","v":"Pleudaniel"}]
["Saint-Brieuc",{"$f":"Feuil1!A367","v":"Pleumeur Gautier"}]
["Saint-Brieuc",{"$f":"Feuil1!A368","v":"Saint-Jacut-de-la-Mer"}]
["Saint-Brieuc",{"$f":"Feuil1!A369","v":"Lancieux"}]
["Saint-Brieuc",{"$f":"Feuil1!A370","v":"Loguivy Plougras"}]
["Saint-Brieuc",{"$f":"Feuil1!A371","v":"Plougras"}]
["Saint-Brieuc",{"$f":"Feuil1!A372","v":"Plounérin"}]
["Saint-Brieuc",{"$f":"Feuil1!A373","v":"Cohiniac"}]
["Saint-Brieuc",{"$f":"Feuil1!A374","v":"Lanfains"}]
["Saint-Brieuc",{"$f":"Feuil1!A375","v":"Le Foeil"}]
["Saint-Brieuc",{"$f":"Feuil1!A376","v":"Le Leslay"}]
["Saint-Brieuc",{"$f":"Feuil1!A377","v":"Le Vieux Bourg"}]
["Saint-Brieuc",{"$f":"Feuil1!A378","v":"Plaine Haute"}]
["Saint-Brieuc",{"$f":"Feuil1!A379","v":"Quintin"}]
["Saint-Brieuc",{"$f":"Feuil1!A380","v":"Saint-Bihy"}]
["Saint-Brieuc",{"$f":"Feuil1!A381","v":"Saint-Brandan"}]
["Saint-Brieuc",{"$f":"Feuil1!A382","v":"Saint-Donan"}]
["Saint-Brieuc",{"$f":"Feuil1!A383","v":"Saint-Gildas"}]
["Saint-Brieuc",{"$f":"Feuil1!A384","v":"Belle Isle en Terre"}]
["Saint-Brieuc",{"$f":"Feuil1!A385","v":"Loc Envel"}]
["Saint-Brieuc",{"$f":"Feuil1!A386","v":"Locmaria"}]
["Saint-Brieuc",{"$f":"Feuil1!A387","v":"Plougonver"}]
["Saint-Brieuc",{"$f":"Feuil1!A388","v":"Plounévez Moëdec"}]
["Saint-Brieuc",{"$f":"Feuil1!A389","v":"Plougrescant"}]
["Saint-Brieuc",{"$f":"Feuil1!A390","v":"Plouasne"}]
["Saint-Brieuc",{"$f":"Feuil1!A391","v":"Plourivo"}]
["Saint-Brieuc",{"$f":"Feuil1!A392","v":"Île de Bréhat"}]
["Saint-Brieuc",{"$f":"Feuil1!A393","v":"Yvias"}]
["Saint-Brieuc",{"$f":"Feuil1!A394","v":"Plaintel"}]
["Saint-Brieuc",{"$f":"Feuil1!A395","v":"Saint-Julien"}]
["Saint-Brieuc",{"$f":"Feuil1!A396","v":"Créac'h Trégueux"}]
["Saint-Brieuc",{"$f":"Feuil1!A397","v":"Trégueux"}]
["Saint-Brieuc",{"$f":"Feuil1!A398","v":"Plédran"}]
["Saint-Brieuc",{"$f":"Feuil1!A399","v":"Coadout"}]
["Saint-Brieuc",{"$f":"Feuil1!A400","v":"Ploumagoar"}]
["Saint-Brieuc",{"$f":"Feuil1!A401","v":"La Landec"}]
["Saint-Brieuc",{"$f":"Feuil1!A402","v":"Languédias"}]
["Saint-Brieuc",{"$f":"Feuil1!A403","v":"Plélan le Petit"}]
["Saint-Brieuc",{"$f":"Feuil1!A404","v":"Saint-Maudez"}]
["Saint-Brieuc",{"$f":"Feuil1!A405","v":"Saint-Meloir"}]
["Saint-Brieuc",{"$f":"Feuil1!A406","v":"Saint-Michel de Plélan"}]
["Saint-Brieuc",{"$f":"Feuil1!A407","v":"Trébédan"}]
["Saint-Brieuc",{"$f":"Feuil1!A408","v":"Vildé Guingalan"}]
["Saint-Brieuc",{"$f":"Feuil1!A409","v":"Binic-Étables-sur-Mer"}]
["Saint-Brieuc",{"$f":"Feuil1!A410","v":"Binic-Étables-sur-Mer"}]
["Saint-Brieuc",{"$f":"Feuil1!A411","v":0}]

{"sheet":"Feuil3","index":2,"n_rows":1,"n_cols":1,"rows_kept":1,"cut":false,"hidden":false,"merged":[]}
["https://www.youtube.com/watch?v=qVyaWYx0oOo"]